[Event "Polish University-ch Women 2024"]
[Site "Lublin"]
[Date "2024.02.24"]
[Round "8.1"]
[White "Kubicka, Anna"]
[Black "Sliwicka, Alicja"]
[Result "1/2-1/2"]
[ECO "B52"]
[WhiteElo "2278"]
[BlackElo "2309"]
[Annotator "ChessBase"]
[PlyCount "291"]
[EventDate "2024.02.22"]
[EventType "swiss"]
[EventCountry "POL"]
[SourceTitle "playchess.com"]
[Source "ChessBase"]
[SourceQuality "1"]
[TimeControl "600+3"]

1. e4 {[%emt 0:00:02]} c5 {[%emt 0:00:01]} 2. Nf3 {[%emt 0:00:02]} d6 {[%emt 0:00:01]} 3. Bb5+ {[%emt 0:00:02]} Bd7 {[%emt 0:00:02]} 4. c4 {[%emt 0:00:03]} Bxb5 {[%emt 0:00:09]} 5. cxb5 {[%emt 0:00:01]} Nf6 {[%emt 0:00:07]} 6. Nc3 {[%emt 0:00:06]} a6 {[%emt 0:00:05]} 7. Qe2 {[%emt 0:00:22]} g6 {[%emt 0:00:10]} 8. d4 {[%emt 0:01:02]} cxd4 {[%emt 0:00:16]} 9. Nxd4 {[%emt 0:00:03]} Bg7 {[%emt 0:00:02]} 10. Be3 {[%emt 0:00:20]} O-O {[%emt 0:09:40]} 11. O-O {[%emt 0:00:05]} Nbd7 {[%emt 0:00:00]} 12. Rfd1 {[%emt 0:00:42]} h5 {[%emt 0:00:00]} 13. h3 {[%emt 0:00:23]} Qa5 {[%emt 0:00:00]} 14. Nb3 {[%emt 0:00:37]} Qd8 {[%emt 0:00:00]} 15. a3 {[%emt 0:00:23]} a5 {[%emt 0:00:00]} 16. a4 {[%emt 0:00:31]} Rc8 {[%emt 0:00:00]} 17. Rac1 {[%emt 0:00:04]} Ne5 {[%emt 0:00:00]} 18. Nd2 {[%emt 0:00:02]} b6 {[%emt 0:00:00]} 19. f4 {[%emt 0:00:25]} Ned7 {[%emt 0:00:00]} 20. Nb3 {[%emt 0:00:08]} Rc7 {[%emt 0:00:00]} 21. e5 {[%emt 0:00:18]} Ne8 {[%emt 0:00:00]} 22. Bf2 {[%emt 0:01:27]} Qb8 {[%emt 0:00:00]} 23. Nd5 {[%emt 0:00:33]} Rxc1 {[%emt 0:00:00]} 24. Nxe7+ {[%emt 0:00:02]} Kh7 {[%emt 0:00:00]} 25. Nxc1 {[%emt 0:00:02]} Nc5 {[%emt 0:00:10]} 26. Bxc5 {[%emt 0:00:41]} bxc5 {[%emt 0:00:07]} 27. Nc6 {[%emt 0:00:34]} Qc7 {[%emt 0:00:03]} 28. Nd3 {[%emt 0:00:49]} c4 {[%emt 0:00:07]} 29. Nf2 {[%emt 0:00:04]} Bh6 {[%emt 0:00:23]} 30. f5 {[%emt 0:00:23]} dxe5 {[%emt 0:00:02]} 31. Nxe5 {[%emt 0:00:18]} Nf6 {[%emt 0:00:04]} 32. Nxc4 {[%emt 0:00:22]} Re8 {[%emt 0:00:01]} 33. Qd3 {[%emt 0:00:02]} Bf4 {[%emt 0:00:05]} 34. fxg6+ {[%emt 0:00:12]} fxg6 {[%emt 0:00:02]} 35. b3 {[%emt 0:00:12]} Qc5 {[%emt 0:00:05]} 36. Qf3 {[%emt 0:00:16]} Bg5 {[%emt 0:00:04]} 37. Kh1 {[%emt 0:00:04]} h4 {[%emt 0:00:03]} 38. Ng4 {[%emt 0:00:08]} Nh5 {[%emt 0:00:03]} 39. Qf7+ {[%emt 0:00:03]} Ng7 {[%emt 0:00:01]} 40. Nf6+ {[%emt 0:00:03]} Bxf6 {[%emt 0:00:01]} 41. Qxf6 {[%emt 0:00:01]} Qh5 {[%emt 0:00:05]} 42. Qd4 {[%emt 0:00:03]} Qf5 {[%emt 0:00:02]} 43. Qd3 {[%emt 0:00:02]} Qg5 {[%emt 0:00:02]} 44. Nd6 {[%emt 0:00:01]} Rf8 {[%emt 0:00:05]} 45. Qd2 {[%emt 0:00:02]} Qf6 {[%emt 0:00:01]} 46. Ne4 {[%emt 0:00:01]} Qf5 {[%emt 0:00:02]} 47. Ng5+ {[%emt 0:00:03]} Kh8 {[%emt 0:00:01]} 48. Nf3 {[%emt 0:00:02]} Nh5 {[%emt 0:00:15]} 49. Qd4+ {[%emt 0:00:02]} Kh7 {[%emt 0:00:00]} 50. Qd7+ {[%emt 0:00:01]} Rf7 {[%emt 0:00:00]} 51. Qxf5 {[%emt 0:00:02]} Rxf5 {[%emt 0:00:00]} 52. Nxh4 {[%emt 0:00:02]} Rf6 {[%emt 0:00:00]} 53. Rc1 {[%emt 0:00:03]} g5 {[%emt 0:00:05]} 54. Nf3 {[%emt 0:00:03]} g4 {[%emt 0:00:02]} 55. hxg4 {[%emt 0:00:03]} Ng3+ {[%emt 0:00:02]} 56. Kh2 {[%emt 0:00:00]} Ne2 {[%emt 0:00:00]} 57. Rc7+ {[%emt 0:00:02]} Kg8 {[%emt 0:00:00]} 58. g5 {[%emt 0:00:04]} Rf4 {[%emt 0:00:00]} 59. Rc4 {[%emt 0:00:07]} Rf7 {[%emt 0:00:00]} 60. Re4 {[%emt 0:00:06]} Rh7+ {[%emt 0:00:00]} 61. Rh4 {[%emt 0:00:01]} Re7 {[%emt 0:00:00]} 62. Nd4 {[%emt 0:00:03]} Nc1 {[%emt 0:00:00]} 63. Nf5 {[%emt 0:00:04]} Re5 {[%emt 0:00:00]} 64. Nh6+ {[%emt 0:00:07]} Kg7 {[%emt 0:00:00]} 65. Rc4 {[%emt 0:00:11]} Nxb3 {[%emt 0:00:00]} 66. Ng4 {[%emt 0:00:03]} Rxg5 {[%emt 0:00:00]} 67. Rc7+ {[%emt 0:00:03]} Kg6 {[%emt 0:00:00]} 68. Rc6+ {[%emt 0:00:01]} Kf5 {[%emt 0:00:00]} 69. Ne3+ {[%emt 0:00:06]} Kf4 {[%emt 0:00:00]} 70. Nc2 {[%emt 0:00:02]} Nc1 {[%emt 0:00:57]} 71. Rf6+ {[%emt 0:00:02]} Ke5 {[%emt 0:00:00]} 72. Rf8 {[%emt 0:00:01]} Kd5 {[%emt 0:00:00]} 73. Ne3+ {[%emt 0:00:03]} Kd4 {[%emt 0:00:00]} 74. Nf1 {[%emt 0:00:02]} Ne2 {[%emt 0:00:00]} 75. Rd8+ {[%emt 0:00:04]} Kc5 {[%emt 0:00:00]} 76. Kh3 {[%emt 0:00:03]} Ng1+ {[%emt 0:00:00]} 77. Kh2 {[%emt 0:00:05]} Ne2 {[%emt 0:00:00]} 78. Rh8 {[%emt 0:00:03]} Rg4 {[%emt 0:00:00]} 79. Rh5+ {[%emt 0:00:02]} Kb6 {[%emt 0:00:00]} 80. Ne3 {[%emt 0:00:04]} Rxa4 {[%emt 0:00:00]} 81. Nd5+ {[%emt 0:00:01]} Kb7 {[%emt 0:00:00]} 82. Rh7+ {[%emt 0:00:01]} Kb8 {[%emt 0:00:00]} 83. b6 {[%emt 0:00:04]} Ra2 {[%emt 0:00:08]} 84. Kh3 {[%emt 0:00:04]} Rd2 {[%emt 0:00:05]} 85. Nf6 {[%emt 0:00:07]} a4 {[%emt 0:00:10]} 86. Ra7 {[%emt 0:00:04]} Nf4+ {[%emt 0:00:10]} 87. Kg3 {[%emt 0:00:02]} Nxg2 {[%emt 0:00:02]} 88. Nd7+ {[%emt 0:00:02]} Rxd7 {[%emt 0:00:06]} 89. Rxd7 {[%emt 0:00:01]} Ne3 {[%emt 0:00:04]} 90. Ra7 {[%emt 0:00:03]} Nc4 {[%emt 0:00:02]} 91. Rxa4 {[%emt 0:00:02]} Nxb6 {[%emt 0:00:01]} 92. Rb4 {[%emt 0:00:01]} Kc7 {[%emt 0:00:02]} 93. Kf3 {[%emt 0:00:02]} Kc6 {[%emt 0:00:01]} 94. Ke4 {[%emt 0:00:01]} Kc5 {[%emt 0:00:02]} 95. Rb1 {[%emt 0:00:01]} Kc6 {[%emt 0:00:06]} 96. Rc1+ {[%emt 0:00:02]} Kd6 {[%emt 0:00:01]} 97. Rh1 {[%emt 0:00:01]} Kc5 {[%emt 0:00:02]} 98. Rh5+ {[%emt 0:00:02]} Kc4 {[%emt 0:00:02]} 99. Rh1 {[%emt 0:00:04]} Kc5 {[%emt 0:00:01]} 100. Rd1 {[%emt 0:00:02]} Kc6 {[%emt 0:00:04]} 101. Ke5 {[%emt 0:00:01]} Kc5 {[%emt 0:00:01]} 102. Rc1+ {[%emt 0:00:03]} Kb5 {[%emt 0:00:01]} 103. Kd6 {[%emt 0:00:05]} Nc4+ {[%emt 0:00:02]} 104. Kd5 {[%emt 0:00:01]} Nb6+ {[%emt 0:00:00]} 105. Kd4 {[%emt 0:00:01]} Nd7 {[%emt 0:00:10]} 106. Rc7 {[%emt 0:00:06]} Nb6 {[%emt 0:00:01]} 107. Rc5+ {[%emt 0:00:01]} Ka6 {[%emt 0:00:03]} 108. Rh5 {[%emt 0:00:04]} Kb7 {[%emt 0:00:03]} 109. Kc5 {[%emt 0:00:02]} Nd7+ {[%emt 0:00:01]} 110. Kd6 {[%emt 0:00:06]} Nb8 {[%emt 0:00:19]} 111. Rb5+ {[%emt 0:00:05]} Kc8 {[%emt 0:00:02]} 112. Rb1 {[%emt 0:00:06]} Nd7 {[%emt 0:00:08]} 113. Rh1 {[%emt 0:00:05]} Nb8 {[%emt 0:00:02]} 114. Rh7 {[%emt 0:00:05]} Na6 {[%emt 0:00:04]} 115. Kc6 {[%emt 0:00:07]} Nb8+ {[%emt 0:00:01]} 116. Kc5 {[%emt 0:00:03]} Nd7+ {[%emt 0:00:03]} 117. Kd6 {[%emt 0:00:03]} Nb8 {[%emt 0:00:06]} 118. Rc7+ {[%emt 0:00:02]} Kd8 {[%emt 0:00:02]} 119. Ra7 {[%emt 0:00:06]} Kc8 {[%emt 0:00:02]} 120. Rc7+ {[%emt 0:00:01]} Kd8 {[%emt 0:00:01]} 121. Rh7 {[%emt 0:00:01]} Kc8 {[%emt 0:00:01]} 122. Rg7 {[%emt 0:00:00]} Na6 {[%emt 0:00:03]} 123. Rg1 {[%emt 0:00:06]} Kb7 {[%emt 0:00:04]} 124. Rb1+ {[%emt 0:00:01]} Kc8 {[%emt 0:00:02]} 125. Rh1 {[%emt 0:00:07]} Kb7 {[%emt 0:00:01]} 126. Rb1+ {[%emt 0:00:02]} Kc8 {[%emt 0:00:01]} 127. Rb2 {[%emt 0:00:01]} Nb8 {[%emt 0:00:03]} 128. Rb6 {[%emt 0:00:01]} Nd7 {[%emt 0:00:03]} 129. Rc6+ {[%emt 0:00:02]} Kd8 {[%emt 0:00:01]} 130. Ra6 {[%emt 0:00:08]} Nb8 {[%emt 0:00:05]} 131. Ra8 {[%emt 0:00:03]} Kc8 {[%emt 0:00:01]} 132. Ra7 {[%emt 0:00:01]} Kd8 {[%emt 0:00:02]} 133. Rc7 {[%emt 0:00:03]} Na6 {[%emt 0:00:02]} 134. Rh7 {[%emt 0:00:03]} Kc8 {[%emt 0:00:03]} 135. Rg7 {[%emt 0:00:07]} Nb8 {[%emt 0:00:05]} 136. Re7 {[%emt 0:00:01]} Na6 {[%emt 0:00:04]} 137. Rf7 {[%emt 0:00:03]} Nb8 {[%emt 0:00:02]} 138. Rh7 {[%emt 0:00:02]} Na6 {[%emt 0:00:01]} 139. Ra7 {[%emt 0:00:01]} Nb8 {[%emt 0:00:01]} 140. Rc7+ {[%emt 0:00:01]} Kd8 {[%emt 0:00:01]} 141. Rc1 {[%emt 0:00:06]} Na6 {[%emt 0:00:02]} 142. Kc6 {[%emt 0:00:03]} Nb8+ {[%emt 0:00:02]} 143. Kd6 {[%emt 0:00:04]} Na6 {[%emt 0:00:02]} 144. Rb1 {[%emt 0:00:03]} Kc8 {[%emt 0:00:01]} 145. Rb6 {[%emt 0:00:05]} Nb8 {[%emt 0:00:02]} 146. Rb4 {[%emt 0:00:04]} 1/2-1/2

[Event "Polish University-ch Women 2024"]
[Site "Lublin"]
[Date "2024.02.24"]
[Round "8.2"]
[White "Kucharska, Honorata"]
[Black "Czarnecka, Lidia"]
[Result "1/2-1/2"]
[ECO "B40"]
[WhiteElo "2137"]
[BlackElo "2034"]
[Annotator "RC"]
[PlyCount "88"]
[EventDate "2024.02.22"]
[EventType "swiss"]
[EventCountry "POL"]
[SourceTitle "playchess.com"]
[Source "ChessBase"]
[SourceQuality "1"]
[TimeControl "600+3"]

1. e4 {[%emt 0:00:03]} c5 {[%emt 0:00:00]} 2. Nf3 {[%emt 0:00:05]} e6 {[%emt 0:00:02]} 3. g3 {[%emt 0:00:09]} d5 {[%emt 0:01:03]} 4. exd5 {[%emt 0:00:22]} Qxd5 {[%emt 0:00:07]} 5. Nc3 {[%emt 0:00:06]} Qd8 {[%emt 0:00:01]} 6. Bg2 {[%emt 0:00:03]} Nf6 {[%emt 0:00:01]} 7. O-O {[%emt 0:00:04]} Nc6 {[%emt 0:00:03]} 8. d3 {[%emt 0:00:11]} Be7 {[%emt 0:00:01]} 9. Qe2 {[%emt 0:00:09]} O-O {[%emt 0:00:03]} 10. Ne4 {[%emt 0:00:18]} Nd5 {[%emt 0:00:53]} 11. Bd2 {[%emt 0:00:25]} Qb6 {[%emt 0:00:42]} 12. c4 {[%emt 0:01:12]} Nf6 {[%emt 0:00:49]} 13. Bc3 {[%emt 0:00:13]} Nd4 {[%emt 0:00:01]} 14. Bxd4 {[%emt 0:00:19]} cxd4 {[%emt 0:00:04]} 15. Rab1 {[%emt 0:00:20]} a5 {[%emt 0:00:14]} 16. Ned2 {[%emt 0:00:15]} Rd8 {[%emt 0:00:40]} 17. a3 {[%emt 0:00:04]} Bd7 {[%emt 0:00:48]} 18. Ne5 {[%emt 0:00:41]} Bc6 {[%emt 0:00:25]} 19. Nxc6 {[%emt 0:00:32]} bxc6 {[%emt 0:00:01]} 20. Rfc1 {[%emt 0:00:58]} Rac8 {[%emt 0:00:27]} 21. b4 {[%emt 0:00:05]} axb4 {[%emt 0:00:31]} 22. axb4 {[%emt 0:00:14]} Bxb4 {[%emt 0:01:32]} 23. c5 {[%emt 0:00:08]} Qa5 {[%emt 0:00:00]} 24. Nc4 {[%emt 0:02:22]} Qxc5 {[%emt 0:00:01]} 25. Ne5 {[%emt 0:00:01]} Bc3 {[%emt 0:00:01]} 26. Rb7 {[%emt 0:00:07]} Rf8 {[%emt 0:00:20]} 27. Rcb1 {[%emt 0:00:16]} Qd6 {[%emt 0:01:10]} 28. Bh3 {[%emt 0:00:11]} Rce8 {[%emt 0:00:33]} 29. R1b6 {[%emt 0:00:17]} Qd5 {[%emt 0:00:26]} 30. Bg2 {[%emt 0:00:12]} Qa5 {[%emt 0:00:07]} 31. Nxc6 {[%emt 0:00:08]} Qa1+ {[%emt 0:00:03]} 32. Rb1 {[%emt 0:00:02]} Qa3 {[%emt 0:00:04]} 33. Ne5 {[%emt 0:00:06]} Qc5 {[%emt 0:00:20]} 34. Nc4 {[%emt 0:00:13]} Nd5 {[%emt 0:00:04]} 35. R7b5 {[%emt 0:00:11]} Qc7 {[%emt 0:00:06]} 36. Rb7 {[%emt 0:00:08]} Qd8 {[%emt 0:00:01]} 37. Ne5 {[%emt 0:00:05]} Nf6 {[%emt 0:00:02]} 38. Bc6 {[%emt 0:00:08]} Re7 {[%emt 0:00:11]} 39. R7b5 {[%emt 0:00:09]} Rc7 {[%emt 0:00:00]} 40. Qf3 {[%emt 0:00:06]} Qe7 {[%emt 0:00:00]} 41. Nc4 {[%emt 0:00:05]} Rfc8 {[%emt 0:00:00]} 42. Be4 {[%emt 0:00:03]} h6 {[%emt 0:00:00]} 43. Ne5 {[%emt 0:00:03]} Nxe4 {[%emt 0:00:00]} 44. Qxe4 {[%emt 0:00:02]} Qf6 {[%emt 0:00:03]} 1/2-1/2

[Event "Polish University-ch Women 2024"]
[Site "Lublin"]
[Date "2024.02.24"]
[Round "8.3"]
[White "Antolak, Julia"]
[Black "Michalak, Wiktoria"]
[Result "1-0"]
[ECO "B16"]
[WhiteElo "2309"]
[BlackElo "1522"]
[Annotator "TA"]
[PlyCount "81"]
[EventDate "2024.02.22"]
[EventType "swiss"]
[EventCountry "POL"]
[SourceTitle "playchess.com"]
[Source "ChessBase"]
[SourceQuality "1"]
[TimeControl "600+3"]

{[%evp 13,81,48,60,46,70,37,45,42,47,-28,26,0,0,0,0,-7,-19,-65,-58,-62,-61,-52,-54,-59,-31,-51,-43,-106,-84,-79,-52,-58,-78,-66,5,7,8,1,8,9,37,0,0,0,115,115,133,133,116,114,240,140,139,138,249,249,239,234,329,336,336,336,29977,29978,29978,29979,29979,29979,29988,29989]} 1. e4 {[%emt 0:00:03]} c6 {[%emt 0:00:02]} 2. d4 {[%emt 0:00:04]} d5 {[%emt 0:00:01]} 3. Nd2 {[%emt 0:00:01]} dxe4 {[%emt 0:00:03]} 4. Nxe4 {[%emt 0:00:02]} Nf6 {[%emt 0:00:01]} 5. Nxf6+ {[%emt 0:00:01]} gxf6 {[%emt 0:00:01]} 6. Bf4 {[%emt 0:00:25]} Bf5 {[%emt 0:00:13]} 7. Nf3 {[%emt 0:00:06]} Nd7 {[%emt 0:00:20][%cal Oe7e5]} 8. Bd3 {[%emt 0:00:07]} Bg7 {[%emt 0:00:41]} 9. O-O {[%emt 0:00:27] White is more active.} Bg6 {[%emt 0:00:12]} 10. Qd2 {[%emt 0:00:27] White is slightly better.} O-O {[%emt 0:01:17]} 11. Bh6 {[%emt 0:00:31]} (11. Rfe1 $14) 11... c5 {[%emt 0:00:27]} ({Black should play} 11... Bxh6 12. Qxh6 Bxd3 13. cxd3 Kh8) 12. Rfe1 {[%emt 0:00:40]} (12. Bxg7 {keeps more tension.} Kxg7 13. Qe3 cxd4 14. Nxd4 Ne5 15. Be2) 12... cxd4 {[%emt 0:00:29]} 13. Bxg6 {[%emt 0:00:15]} hxg6 {[%emt 0:00:32]} 14. Bxg7 {[%emt 0:00:06]} Kxg7 {[%emt 0:00:01]} 15. Qxd4 {[%emt 0:00:02]} (15. Nxd4 $11 Ne5 16. c3) 15... e5 $1 $15 {[%emt 0:00:11]} 16. Qb4 {[%emt 0:01:08]} Qb6 {[%emt 0:00:33]} 17. Qxb6 {[%emt 0:00:02]} Nxb6 {[%emt 0:00:04][%cal Bd7b6,Bb6d5,Bd5c3][%mdl 32]} 18. Rad1 {[%emt 0:00:02]} Rad8 {[%emt 0:00:08]} 19. b3 {[%emt 0:00:02]} Nd5 {[%emt 0:00:39]} 20. Rd2 {[%emt 0:01:06]} (20. g4 $15) 20... Nc3 {[%emt 0:00:06]} 21. a4 {[%emt 0:01:52]} a6 {[%emt 0:00:05]} 22. Re3 {[%emt 0:00:29]} Rxd2 {[%emt 0:00:17]} 23. Nxd2 {[%emt 0:00:02]} Rd8 {[%emt 0:00:19]} (23... Rc8 $15) 24. Rxc3 $11 {[%emt 0:00:02]} Rxd2 {[%emt 0:00:01][%cal Rd2d1][%mdl 4096] [#] Endgame. KR-KR} 25. Kf1 {[%emt 0:00:20]} f5 {[%emt 0:00:22]} 26. Rc7 {[%emt 0:00:14][%cal Of1e1] Black should prevent Ke1!} b5 {[%emt 0:00:12]} 27. axb5 {[%emt 0:00:01]} axb5 {[%emt 0:00:00]} 28. Rc5 {[%emt 0:00:02]} b4 {[%emt 0:00:29]} (28... e4 $11 {remains equal.}) 29. Ke1 $1 $16 {[%emt 0:00:11]} ({Don't take} 29. Rxe5 $6 Rxc2 30. Rb5 Rc1+ 31. Ke2 Rc2+ 32. Ke1 Rc1+ 33. Kd2 Rh1 $11) 29... Rd4 {[%emt 0:00:50]} 30. Rxe5 {[%emt 0:00:02]} Kf6 {[%emt 0:00:06]} 31. Rc5 {[%emt 0:00:01]} g5 {[%emt 0:00:24] [#] A mistake that costs the game.} (31... Re4+ $16 {was worth a try.} 32. Kd2 Rd4+ 33. Ke3 Rd1) 32. Ke2 {[%emt 0:00:16]} (32. Rc4 $1 $18 {[%cal Rc4d4]} Rxc4 33. bxc4) 32... Re4+ {[%emt 0:00:27]} 33. Kd3 {[%emt 0:00:18]} Rf4 {[%emt 0:00:25]} (33... Re1 $16) 34. f3 $18 {[%emt 0:00:04] Rc4 would now be deadly.} Rh4 {[%emt 0:00:21]} 35. h3 {[%emt 0:00:07]} g4 {[%emt 0:00:25]} (35... Rh8 $142 36. Kc4 Rb8) 36. fxg4 {[%emt 0:00:53]} fxg4 {[%emt 0:00:02]} 37. Rc4 $1 {[%emt 0:00:01][%csl LRb4,LRg4]} Kg5 $2 {[%emt 0:00:12]} (37... Rh8 $18 38. Rxg4 Rb8) 38. Rxg4+ {[%emt 0:00:18] White mates.} Rxg4 {[%emt 0:00:01]} 39. hxg4 {[%emt 0:00:02]} Kxg4 {[%emt 0:00:02]} 40. c4 {[%emt 0:00:00][%cal Bc2c4,Bc4c5][%mdl 32]} Kg3 {[%emt 0:00:37]} 41. c5 {[%emt 0:00:04] Weighted Error Value: White=0.16 (very precise) /Black=0.50.  Mistake:       	White=4     	Black=7      Inaccurate:     	White=3     	Black=3      OK:         	White=8     	Black=7      Best:        	White=5     	Black=1      Strong:       	White=1     	Black=1} 1-0

[Event "Polish University-ch Women 2024"]
[Site "Lublin"]
[Date "2024.02.24"]
[Round "8.4"]
[White "Parol, Pola"]
[Black "Jarocka, Liwia"]
[Result "0-1"]
[ECO "B15"]
[WhiteElo "2030"]
[BlackElo "2199"]
[Annotator "RC"]
[PlyCount "64"]
[EventDate "2024.02.22"]
[EventType "swiss"]
[EventCountry "POL"]
[SourceTitle "playchess.com"]
[Source "ChessBase"]
[SourceQuality "1"]
[TimeControl "600+3"]

1. e4 {[%emt 0:00:01]} c6 {[%emt 0:00:04]} 2. d4 {[%emt 0:00:02]} d5 {[%emt 0:00:01]} 3. Nc3 {[%emt 0:00:01]} dxe4 {[%emt 0:00:05]} 4. Nxe4 {[%emt 0:00:01]} Nf6 {[%emt 0:00:01]} 5. Nxf6+ {[%emt 0:00:04]} exf6 {[%emt 0:00:01]} 6. c3 {[%emt 0:00:12]} Bd6 {[%emt 0:00:02]} 7. Bd3 {[%emt 0:00:02]} O-O {[%emt 0:00:02]} 8. Qc2 {[%emt 0:00:01]} Re8+ {[%emt 0:00:01]} 9. Ne2 {[%emt 0:00:01]} h5 {[%emt 0:00:02]} 10. O-O {[%emt 0:00:16]} h4 {[%emt 0:00:03]} 11. Nf4 {[%emt 0:00:15]} Qc7 {[%emt 0:00:22]} 12. g3 {[%emt 0:00:11]} Nd7 {[%emt 0:00:03]} 13. Qd1 {[%emt 0:00:14]} Nf8 {[%emt 0:00:15]} 14. Qh5 {[%emt 0:00:18]} Qd7 {[%emt 0:00:46]} 15. f3 {[%emt 0:00:59]} c5 {[%emt 0:00:28]} 16. d5 {[%emt 0:02:05]} Re5 {[%emt 0:00:22]} 17. Qg4 {[%emt 0:01:07]} Qxg4 {[%emt 0:00:15]} 18. fxg4 {[%emt 0:00:01]} hxg3 {[%emt 0:00:01]} 19. h3 {[%emt 0:00:27]} f5 {[%emt 0:00:04]} 20. g5 {[%emt 0:00:24]} Bd7 {[%emt 0:00:59]} 21. Kg2 {[%emt 0:00:19]} b5 {[%emt 0:00:16]} 22. Kxg3 {[%emt 0:00:16]} c4 {[%emt 0:00:02]} 23. Bc2 {[%emt 0:00:04]} Rxd5 {[%emt 0:00:03]} 24. Be3 {[%emt 0:00:09]} Re8 {[%emt 0:00:10]} 25. Kf3 {[%emt 0:00:29]} Rde5 {[%emt 0:01:08]} 26. Bxa7 {[%emt 0:00:42]} Bc6+ {[%emt 0:00:15]} 27. Kg3 {[%emt 0:00:45]} Re2 {[%emt 0:00:14]} 28. Rf2 {[%emt 0:00:53]} Ng6 {[%emt 0:00:06]} 29. Bd1 {[%emt 0:00:57]} Rxf2 {[%emt 0:00:05]} 30. Kxf2 {[%emt 0:00:02]} Nxf4 {[%emt 0:00:05]} 31. h4 {[%emt 0:00:04]} Nd3+ {[%emt 0:00:02]} 32. Kf1 {[%emt 0:00:07]} Re1# {[%emt 0:00:03]} 0-1